[Event "GrandPrix_29.05"]
[Site "Chess.com"]
[Date "2020.05.29"]
[Round "7"]
[White "WildBizon"]
[Black "ZverevLev"]
[Result "1-0"]
[WhiteElo "2138"]
[BlackElo "2199"]
[TimeControl "600+2"]
[EndTime "12:23:00 PDT"]
[Termination "WildBizon won by resignation"]

1. e4 {[%clk 0:10:01.9]} 1... c5 {[%clk 0:09:56]} 2. Nc3 {[%clk 0:10:01.2]} 2...
Nc6 {[%clk 0:09:54.3]} 3. Bb5 {[%clk 0:10:01.3]} 3... d6 {[%clk 0:09:51.6]} 4.
Bxc6+ {[%clk 0:09:56.2]} 4... bxc6 {[%clk 0:09:50.8]} 5. f4 {[%clk 0:09:58.1]}
5... g6 {[%clk 0:09:47.1]} 6. Nf3 {[%clk 0:09:58.6]} 6... Bg7 {[%clk 0:09:46]}
7. O-O {[%clk 0:09:59.4]} 7... Nf6 {[%clk 0:09:44.9]} 8. d3 {[%clk 0:09:59.3]}
8... O-O {[%clk 0:09:44.3]} 9. Qe1 {[%clk 0:09:55.6]} 9... e5 {[%clk 0:09:15.8]}
10. fxe5 {[%clk 0:09:40.1]} 10... dxe5 {[%clk 0:09:14.9]} 11. b3 {[%clk
0:09:28]} 11... Ne8 {[%clk 0:08:59.5]} 12. Ba3 {[%clk 0:09:23.4]} 12... Nc7
{[%clk 0:08:41.4]} 13. Bxc5 {[%clk 0:09:22.5]} 13... Re8 {[%clk 0:08:41.4]} 14.
Be3 {[%clk 0:09:15.8]} 14... Ne6 {[%clk 0:08:39.8]} 15. Na4 {[%clk 0:09:11.3]}
15... Nd4 {[%clk 0:08:37.2]} 16. Nxd4 {[%clk 0:09:08.9]} 16... exd4 {[%clk
0:08:36.5]} 17. Bf4 {[%clk 0:09:10.1]} 17... f5 {[%clk 0:08:16.4]} 18. Nc5
{[%clk 0:09:01.7]} 18... fxe4 {[%clk 0:08:15.8]} 19. Nxe4 {[%clk 0:08:58.5]}
19... Bf5 {[%clk 0:08:12.5]} 20. Qb4 {[%clk 0:07:52.7]} 20... Bxe4 {[%clk
0:07:58.6]} 21. dxe4 {[%clk 0:07:54.6]} 21... Rxe4 {[%clk 0:07:57.9]} 22. Qc4+
{[%clk 0:07:52.1]} 22... Qd5 {[%clk 0:07:56.8]} 23. Qxd5+ {[%clk 0:07:52.2]}
23... cxd5 {[%clk 0:07:58.7]} 24. Rad1 {[%clk 0:07:50.9]} 24... Rae8 {[%clk
0:07:49.1]} 25. Rd2 {[%clk 0:07:38.7]} 25... Re1 {[%clk 0:07:25.1]} 26. Rxe1
{[%clk 0:07:25.5]} 26... Rxe1+ {[%clk 0:07:27]} 27. Kf2 {[%clk 0:07:27]} 27...
Re4 {[%clk 0:07:26.1]} 28. Bb8 {[%clk 0:06:59.4]} 28... Bh6 {[%clk 0:07:24]} 29.
Rd3 {[%clk 0:06:53.2]} 29... Be3+ {[%clk 0:07:23.6]} 30. Kf3 {[%clk 0:06:52.1]}
30... Re7 {[%clk 0:07:19.5]} 31. c3 {[%clk 0:06:03]} 31... Rf7+ {[%clk
0:06:49.9]} 32. Kg4 {[%clk 0:06:03.7]} 32... h5+ {[%clk 0:06:46.7]} 33. Kh3
{[%clk 0:06:04.7]} 33... Rf8 {[%clk 0:05:47.9]} 34. Bxa7 {[%clk 0:05:54.1]}
34... g5 {[%clk 0:05:32.6]} 35. Bxd4 {[%clk 0:05:42.4]} 35... g4+ {[%clk
0:05:32.6]} 36. Kh4 {[%clk 0:05:43.3]} 36... Bf2+ {[%clk 0:05:32]} 37. Kxh5
{[%clk 0:05:41.8]} 37... Bxd4 {[%clk 0:05:31.6]} 38. Rxd4 {[%clk 0:05:42.9]}
38... Rf5+ {[%clk 0:05:30.2]} 39. Kxg4 {[%clk 0:05:40.4]} 39... Rf2 {[%clk
0:05:29.8]} 40. Kg3 {[%clk 0:05:41.5]} 40... Rc2 {[%clk 0:05:29]} 41. Rxd5
{[%clk 0:05:23.9]} 41... Rxc3+ {[%clk 0:05:30]} 42. Kh4 {[%clk 0:05:25]} 42...
Rc2 {[%clk 0:05:30.5]} 43. Rg5+ {[%clk 0:05:26.5]} 43... Kh7 {[%clk 0:05:29.8]}
44. a4 {[%clk 0:05:28.4]} 44... Kh6 {[%clk 0:05:30.5]} 45. Rg3 {[%clk
0:05:26.9]} 45... Rc5 {[%clk 0:05:26.9]} 46. b4 {[%clk 0:05:23.2]} 46... Rh5+
{[%clk 0:05:26.1]} 47. Kg4 {[%clk 0:05:23.9]} 47... Rd5 {[%clk 0:05:26.1]} 48.
Kf3 {[%clk 0:05:21.2]} 48... Rd4 {[%clk 0:05:26.3]} 49. Rg4 {[%clk 0:05:22]}
49... Rd3+ {[%clk 0:05:27.1]} 50. Ke2 {[%clk 0:05:22]} 50... Ra3 {[%clk
0:05:27.1]} 51. b5 {[%clk 0:05:20.2]} 51... Kh5 {[%clk 0:05:26]} 52. h3 {[%clk
0:05:21.3]} 52... Ra2+ {[%clk 0:05:25.5]} 53. Kd3 {[%clk 0:05:22.2]} 53... Ra3+
{[%clk 0:05:26.7]} 54. Kc2 {[%clk 0:05:23.4]} 54... Ra2+ {[%clk 0:05:27.9]} 55.
Kb3 {[%clk 0:05:24.5]} 1-0

[Event "GrandPrix_29.05"]
[Site "Chess.com"]
[Date "2020.05.29"]
[Round "7"]
[White "A_N_D-R_E_I"]
[Black "Lion_DL"]
[Result "0-1"]
[WhiteElo "2080"]
[BlackElo "2220"]
[TimeControl "600+2"]
[EndTime "12:23:07 PDT"]
[Termination "Lion_DL won by resignation"]

1. e4 {[%clk 0:10:01.9]} 1... Nc6 {[%clk 0:10:00.9]} 2. Nf3 {[%clk 0:09:56.8]}
2... d6 {[%clk 0:10:01.4]} 3. d4 {[%clk 0:09:57.1]} 3... Nf6 {[%clk 0:10:02.5]}
4. Nc3 {[%clk 0:09:57]} 4... Bg4 {[%clk 0:10:02.6]} 5. Be2 {[%clk 0:09:54.7]}
5... e6 {[%clk 0:10:03.3]} 6. h3 {[%clk 0:09:54.9]} 6... Bh5 {[%clk 0:10:03.6]}
7. O-O {[%clk 0:09:55.1]} 7... Be7 {[%clk 0:10:01.3]} 8. Be3 {[%clk 0:09:33.4]}
8... O-O {[%clk 0:09:59.1]} 9. a3 {[%clk 0:09:33.2]} 9... d5 {[%clk 0:09:50]}
10. e5 {[%clk 0:09:26.2]} 10... Ne4 {[%clk 0:09:01.9]} 11. Nb1 {[%clk
0:09:04.9]} 11... f6 {[%clk 0:08:21.3]} 12. exf6 {[%clk 0:09:05.3]} 12... Bxf6
{[%clk 0:08:20.5]} 13. c3 {[%clk 0:08:47.5]} 13... Qd6 {[%clk 0:07:58.9]} 14.
Nbd2 {[%clk 0:08:38.3]} 14... Nxd2 {[%clk 0:07:55.6]} 15. Qxd2 {[%clk
0:08:35.4]} 15... e5 {[%clk 0:07:00.4]} 16. dxe5 {[%clk 0:08:33.9]} 16... Nxe5
{[%clk 0:06:58.8]} 17. Nxe5 {[%clk 0:08:10.9]} 17... Bxe2 {[%clk 0:07:00.7]} 18.
Qxe2 {[%clk 0:08:12.3]} 18... Bxe5 {[%clk 0:06:33.7]} 19. Rad1 {[%clk
0:08:06.6]} 19... c6 {[%clk 0:06:33.2]} 20. Rfe1 {[%clk 0:07:27.1]} 20... Rae8
{[%clk 0:06:18]} 21. Qc2 {[%clk 0:06:30.4]} 21... b6 {[%clk 0:05:48.7]} 22. Qb3
{[%clk 0:06:10.9]} 22... Qf6 {[%clk 0:05:20.2]} 23. Qa4 {[%clk 0:05:18.3]} 23...
Bb8 {[%clk 0:05:02.8]} 24. Qg4 {[%clk 0:04:55.7]} 24... Re4 {[%clk 0:04:36.6]}
25. Qh5 {[%clk 0:04:49.6]} 25... Rxe3 {[%clk 0:04:15]} 26. fxe3 {[%clk
0:04:31.7]} 26... Qf2+ {[%clk 0:04:13.6]} 27. Kh1 {[%clk 0:04:32.8]} 27... Qg3
{[%clk 0:04:14]} 0-1

[Event "GrandPrix_29.05"]
[Site "Chess.com"]
[Date "2020.05.29"]
[Round "7"]
[White "StephenDedalus83"]
[Black "ehrenfeld"]
[Result "1-0"]
[WhiteElo "2100"]
[BlackElo "2015"]
[TimeControl "600+2"]
[EndTime "12:23:23 PDT"]
[Termination "StephenDedalus83 won by resignation"]

1. e4 {[%clk 0:10:01.9]} 1... e5 {[%clk 0:09:53.4]} 2. Nf3 {[%clk 0:10:02.7]}
2... Nc6 {[%clk 0:09:53.3]} 3. Bb5 {[%clk 0:10:03.4]} 3... a6 {[%clk 0:09:53.8]}
4. Ba4 {[%clk 0:10:04.4]} 4... Nf6 {[%clk 0:09:54.8]} 5. O-O {[%clk 0:10:05.8]}
5... Be7 {[%clk 0:09:56]} 6. Re1 {[%clk 0:10:06.8]} 6... b5 {[%clk 0:09:55.9]}
7. Bb3 {[%clk 0:10:08.3]} 7... d6 {[%clk 0:09:57.4]} 8. c3 {[%clk 0:10:08.7]}
8... O-O {[%clk 0:09:58.2]} 9. h3 {[%clk 0:10:09.7]} 9... Na5 {[%clk 0:09:58.8]}
10. Bc2 {[%clk 0:10:10.2]} 10... c5 {[%clk 0:10:00]} 11. d4 {[%clk 0:10:11.4]}
11... Qc7 {[%clk 0:10:01.2]} 12. Nbd2 {[%clk 0:10:11.9]} 12... Bd7 {[%clk
0:10:01.9]} 13. Nf1 {[%clk 0:10:08.9]} 13... Rfe8 {[%clk 0:10:01.3]} 14. b3
{[%clk 0:09:45.3]} 14... cxd4 {[%clk 0:09:37.2]} 15. cxd4 {[%clk 0:09:44.5]}
15... Nc6 {[%clk 0:09:38.4]} 16. Bb2 {[%clk 0:09:42.6]} 16... Nb4 {[%clk
0:08:34.9]} 17. Bb1 {[%clk 0:09:42.1]} 17... Bf8 {[%clk 0:08:10.8]} 18. Qd2
{[%clk 0:09:36.2]} 18... d5 {[%clk 0:05:57.3]} 19. dxe5 {[%clk 0:09:33.1]} 19...
Nxe4 {[%clk 0:05:57.7]} 20. Bxe4 {[%clk 0:09:33.6]} 20... dxe4 {[%clk
0:05:58.4]} 21. Rxe4 {[%clk 0:09:34.3]} 21... a5 {[%clk 0:05:31.9]} 22. a3
{[%clk 0:08:51.3]} 22... Bc6 {[%clk 0:04:43]} 23. Rc1 {[%clk 0:08:49.6]} 23...
Qb7 {[%clk 0:04:37]} 24. Rh4 {[%clk 0:08:05.5]} 24... Bxf3 {[%clk 0:03:58.3]}
25. gxf3 {[%clk 0:08:04.7]} 25... Rad8 {[%clk 0:03:53.9]} 26. Bd4 {[%clk
0:07:49.5]} 26... Nc6 {[%clk 0:03:31.6]} 27. Qc2 {[%clk 0:07:49.9]} 27... f5
{[%clk 0:03:00]} 28. Qxc6 {[%clk 0:07:29.5]} 28... Qxc6 {[%clk 0:03:00.1]} 29.
Rxc6 {[%clk 0:07:31.1]} 29... g5 {[%clk 0:03:00.8]} 30. Rh5 {[%clk 0:07:32.5]}
30... Rxd4 {[%clk 0:02:59.5]} 31. Rxg5+ {[%clk 0:07:33.5]} 31... Kf7 {[%clk
0:02:58.5]} 32. Rxf5+ {[%clk 0:07:34.4]} 32... Ke7 {[%clk 0:02:48.9]} 33. Ne3
{[%clk 0:07:35]} 33... Rd3 {[%clk 0:02:36.2]} 34. b4 {[%clk 0:07:34.8]} 34...
Rxa3 {[%clk 0:02:17.8]} 35. bxa5 {[%clk 0:07:34.9]} 35... Rxa5 {[%clk
0:02:03.6]} 36. e6 {[%clk 0:07:35.6]} 36... Bh6 {[%clk 0:01:37.1]} 37. Rf7+
{[%clk 0:07:32.8]} 1-0

[Event "GrandPrix_29.05"]
[Site "Chess.com"]
[Date "2020.05.29"]
[Round "7"]
[White "AlexPapasimakopoulos"]
[Black "Margency"]
[Result "0-1"]
[WhiteElo "2220"]
[BlackElo "2252"]
[TimeControl "600+2"]
[EndTime "12:23:32 PDT"]
[Termination "Margency won by resignation"]

1. d4 {[%clk 0:09:59.4]} 1... d5 {[%clk 0:10:00.1]} 2. c4 {[%clk 0:09:57.7]}
2... e6 {[%clk 0:10:00.9]} 3. Nc3 {[%clk 0:09:57.8]} 3... c5 {[%clk 0:10:01.7]}
4. cxd5 {[%clk 0:09:58.6]} 4... exd5 {[%clk 0:10:03.6]} 5. Nf3 {[%clk
0:09:59.3]} 5... Nc6 {[%clk 0:10:03.9]} 6. g3 {[%clk 0:10:00.3]} 6... Nf6 {[%clk
0:10:04.4]} 7. Bg2 {[%clk 0:10:01.4]} 7... Be7 {[%clk 0:10:05.5]} 8. O-O {[%clk
0:10:02.3]} 8... O-O {[%clk 0:10:06.6]} 9. Bg5 {[%clk 0:10:03.2]} 9... cxd4
{[%clk 0:10:06.9]} 10. Nxd4 {[%clk 0:10:05.1]} 10... h6 {[%clk 0:10:07.7]} 11.
Be3 {[%clk 0:10:05.4]} 11... Re8 {[%clk 0:10:08]} 12. Qa4 {[%clk 0:10:04.2]}
12... Bd7 {[%clk 0:10:08.3]} 13. Rad1 {[%clk 0:10:05.5]} 13... Nb4 {[%clk
0:10:08.6]} 14. Qb3 {[%clk 0:10:04.5]} 14... a5 {[%clk 0:10:09.5]} 15. a4 {[%clk
0:10:02]} 15... Rc8 {[%clk 0:10:10.3]} 16. Rd2 {[%clk 0:09:53.6]} 16... Bc5
{[%clk 0:08:24.5]} 17. Rfd1 {[%clk 0:09:18.9]} 17... Rxe3 {[%clk 0:07:57.9]} 18.
fxe3 {[%clk 0:09:20.8]} 18... Qe7 {[%clk 0:07:53.8]} 19. Ncb5 {[%clk 0:08:43]}
19... Ng4 {[%clk 0:07:28.4]} 20. Bf3 {[%clk 0:08:16.7]} 20... Nxe3 {[%clk
0:07:20.5]} 21. Kf2 {[%clk 0:07:52.4]} 21... Nxd1+ {[%clk 0:07:17.3]} 22. Rxd1
{[%clk 0:07:54.3]} 22... Bxb5 {[%clk 0:06:56.5]} 23. axb5 {[%clk 0:07:56.2]}
23... a4 {[%clk 0:06:19.5]} 24. Qc3 {[%clk 0:07:32.4]} 24... Rc7 {[%clk
0:05:09.6]} 25. Kg2 {[%clk 0:07:28.2]} 25... Bxd4 {[%clk 0:05:01.7]} 26. Qxd4
{[%clk 0:07:30.1]} 26... Nc2 {[%clk 0:05:02.7]} 27. Qxa4 {[%clk 0:07:18.2]}
27... Ne3+ {[%clk 0:04:58.4]} 28. Kf2 {[%clk 0:07:19.9]} 28... Nxd1+ {[%clk
0:04:57.5]} 29. Qxd1 {[%clk 0:07:21.8]} 29... Qc5+ {[%clk 0:04:57.3]} 30. Kg2
{[%clk 0:07:21.4]} 30... Qxb5 {[%clk 0:04:51.1]} 31. Bxd5 {[%clk 0:07:19.8]}
31... Rd7 {[%clk 0:04:42.9]} 32. e4 {[%clk 0:07:20.9]} 32... Qxb2+ {[%clk
0:04:43.5]} 33. Kh3 {[%clk 0:07:22.6]} 33... Qe5 {[%clk 0:04:35.9]} 34. Qc2
{[%clk 0:07:07.4]} 34... Rc7 {[%clk 0:04:23.3]} 35. Qa4 {[%clk 0:06:56.8]} 35...
Qe7 {[%clk 0:04:05.8]} 36. Qa8+ {[%clk 0:06:54.7]} 36... Kh7 {[%clk 0:04:06.6]}
37. Qa2 {[%clk 0:06:54]} 37... g6 {[%clk 0:04:00.1]} 38. Kg2 {[%clk 0:06:52.2]}
38... Qf6 {[%clk 0:03:54.7]} 39. h4 {[%clk 0:06:51]} 39... h5 {[%clk 0:03:55.3]}
40. Qe2 {[%clk 0:06:43.7]} 40... Qe5 {[%clk 0:03:47.7]} 41. Qf3 {[%clk
0:06:41.2]} 41... Kg7 {[%clk 0:03:47.8]} 42. Kh3 {[%clk 0:06:41.5]} 42... Rd7
{[%clk 0:03:38]} 43. Qb3 {[%clk 0:06:32.5]} 43... Qa1 {[%clk 0:03:29.5]} 44. Qf3
{[%clk 0:06:28.8]} 44... b5 {[%clk 0:03:25.6]} 45. Bc6 {[%clk 0:06:16.9]} 45...
Rd3 {[%clk 0:03:20.8]} 46. e5 {[%clk 0:06:18.5]} 0-1

[Event "GrandPrix_29.05"]
[Site "Chess.com"]
[Date "2020.05.29"]
[Round "7"]
[White "IriBu"]
[Black "N4700000"]
[Result "1-0"]
[WhiteElo "2345"]
[BlackElo "2331"]
[TimeControl "600+2"]
[EndTime "12:23:37 PDT"]
[Termination "IriBu won by resignation"]

1. e4 {[%clk 0:10:01.9]} 1... c5 {[%clk 0:09:58.8]} 2. Nf3 {[%clk 0:10:02.1]}
2... e6 {[%clk 0:10:00]} 3. d4 {[%clk 0:10:02.7]} 3... cxd4 {[%clk 0:10:01.9]}
4. Nxd4 {[%clk 0:10:04.2]} 4... Nf6 {[%clk 0:10:02.3]} 5. Nc3 {[%clk 0:10:04.5]}
5... Nc6 {[%clk 0:10:03.7]} 6. a3 {[%clk 0:10:04.7]} 6... d5 {[%clk 0:09:52.3]}
7. Bb5 {[%clk 0:10:04.3]} 7... Bd7 {[%clk 0:09:36.3]} 8. exd5 {[%clk 0:10:04.6]}
8... exd5 {[%clk 0:09:34.4]} 9. O-O {[%clk 0:10:03.5]} 9... Be7 {[%clk
0:09:33.5]} 10. Bg5 {[%clk 0:09:34.3]} 10... O-O {[%clk 0:09:28.2]} 11. Nf3
{[%clk 0:09:23.7]} 11... Be6 {[%clk 0:09:13.6]} 12. Re1 {[%clk 0:09:08.1]} 12...
h6 {[%clk 0:09:10.9]} 13. Bh4 {[%clk 0:09:06.6]} 13... a6 {[%clk 0:08:54.6]} 14.
Bf1 {[%clk 0:08:56.6]} 14... d4 {[%clk 0:08:43.2]} 15. Ne2 {[%clk 0:08:34.3]}
15... Bc5 {[%clk 0:08:29]} 16. Nf4 {[%clk 0:07:16.1]} 16... Bf5 {[%clk
0:08:25.4]} 17. Bd3 {[%clk 0:06:53.5]} 17... Bc8 {[%clk 0:08:11.4]} 18. Nh5
{[%clk 0:06:18.2]} 18... g5 {[%clk 0:08:04.1]} 19. Nxg5 {[%clk 0:06:06.5]} 19...
Ng4 {[%clk 0:06:20]} 20. Bh7+ {[%clk 0:05:32.3]} 20... Kh8 {[%clk 0:06:18.3]}
21. Nxf7+ {[%clk 0:05:28]} 21... Rxf7 {[%clk 0:06:16.5]} 22. Bxd8 {[%clk
0:05:27.7]} 22... Kxh7 {[%clk 0:06:08.8]} 23. Bh4 {[%clk 0:04:59.6]} 23... Bf5
{[%clk 0:06:00.5]} 24. Ng3 {[%clk 0:04:48.7]} 24... Bd7 {[%clk 0:05:54.8]} 25.
Ne4 {[%clk 0:04:45.8]} 25... Bb6 {[%clk 0:05:38.8]} 26. h3 {[%clk 0:04:43]}
26... Nge5 {[%clk 0:05:37.7]} 27. Qh5 {[%clk 0:04:18]} 27... Rg8 {[%clk
0:05:20.7]} 28. Nf6+ {[%clk 0:03:59.5]} 28... Rxf6 {[%clk 0:05:20]} 29. Bxf6
{[%clk 0:03:59.5]} 29... Ng6 {[%clk 0:05:15.6]} 30. Bg5 {[%clk 0:03:48.7]} 30...
Kg7 {[%clk 0:04:55.6]} 31. Bxh6+ {[%clk 0:03:49.6]} 31... Kf6 {[%clk 0:04:49.5]}
32. Qg5+ {[%clk 0:03:47.9]} 32... Kf7 {[%clk 0:04:50.2]} 33. Qd5+ {[%clk
0:03:48.5]} 1-0

[Event "GrandPrix_29.05"]
[Site "Chess.com"]
[Date "2020.05.29"]
[Round "7"]
[White "mikolka1985"]
[Black "Kiril1965"]
[Result "0-1"]
[WhiteElo "2395"]
[BlackElo "2646"]
[TimeControl "600+2"]
[EndTime "12:23:43 PDT"]
[Termination "Kiril1965 won by resignation"]

1. d4 {[%clk 0:09:57.5]} 1... Nf6 {[%clk 0:09:58.9]} 2. c4 {[%clk 0:09:57.2]}
2... g6 {[%clk 0:09:59.7]} 3. g3 {[%clk 0:09:55.8]} 3... c5 {[%clk 0:09:46]} 4.
d5 {[%clk 0:09:53.6]} 4... b5 {[%clk 0:09:43]} 5. cxb5 {[%clk 0:09:53.5]} 5...
a6 {[%clk 0:09:42.9]} 6. bxa6 {[%clk 0:09:53.5]} 6... Bg7 {[%clk 0:09:42.9]} 7.
Bg2 {[%clk 0:09:52.2]} 7... d6 {[%clk 0:09:43.4]} 8. Nc3 {[%clk 0:09:52.1]} 8...
O-O {[%clk 0:09:43.6]} 9. Nf3 {[%clk 0:09:52.9]} 9... Bf5 {[%clk 0:09:44.2]} 10.
Nh4 {[%clk 0:09:48.4]} 10... Bd7 {[%clk 0:09:40]} 11. O-O {[%clk 0:09:48.4]}
11... Nxa6 {[%clk 0:09:39.9]} 12. Bd2 {[%clk 0:09:47.4]} 12... Qb6 {[%clk
0:09:37.8]} 13. Qc1 {[%clk 0:09:38.5]} 13... Rfb8 {[%clk 0:09:25.9]} 14. Rb1
{[%clk 0:09:35.4]} 14... Nc7 {[%clk 0:09:20]} 15. Re1 {[%clk 0:07:30.9]} 15...
Nb5 {[%clk 0:09:09.8]} 16. Nxb5 {[%clk 0:07:30]} 16... Bxb5 {[%clk 0:09:05.9]}
17. a3 {[%clk 0:06:54.7]} 17... Qa6 {[%clk 0:08:23.8]} 18. Bc3 {[%clk
0:06:04.7]} 18... Rb7 {[%clk 0:08:02.9]} 19. Qd2 {[%clk 0:05:30.7]} 19... Rab8
{[%clk 0:07:51.7]} 20. b4 {[%clk 0:05:16]} 20... Qxa3 {[%clk 0:07:23]} 21. Ra1
{[%clk 0:05:14.3]} 21... Qb3 {[%clk 0:07:22.7]} 22. bxc5 {[%clk 0:05:13.7]}
22... Ne4 {[%clk 0:07:11.4]} 23. Bxe4 {[%clk 0:05:07.9]} 23... Qxc3 {[%clk
0:07:03.5]} 24. Qxc3 {[%clk 0:04:30.4]} 24... Bxc3 {[%clk 0:07:03.6]} 25. c6
{[%clk 0:04:30.9]} 25... Rb6 {[%clk 0:06:34.5]} 26. Bf3 {[%clk 0:04:18.6]} 26...
Bxe1 {[%clk 0:06:25]} 27. Rxe1 {[%clk 0:04:17.9]} 27... Ba6 {[%clk 0:06:19.4]}
28. Kg2 {[%clk 0:03:49.3]} 28... Rb1 {[%clk 0:06:11.7]} 29. Rxb1 {[%clk
0:03:48.3]} 29... Rxb1 {[%clk 0:06:12.3]} 30. Be4 {[%clk 0:02:31.4]} 30... Rc1
{[%clk 0:06:09.5]} 31. e3 {[%clk 0:02:24]} 31... f5 {[%clk 0:06:00.2]} 0-1

[Event "GrandPrix_29.05"]
[Site "Chess.com"]
[Date "2020.05.29"]
[Round "7"]
[White "Chessialist"]
[Black "Keks2017"]
[Result "1-0"]
[WhiteElo "2541"]
[BlackElo "2331"]
[TimeControl "600+2"]
[EndTime "12:23:54 PDT"]
[Termination "Chessialist won by resignation"]

1. c4 {[%clk 0:10:01.9]} 1... d6 {[%clk 0:09:56.2]} 2. Nc3 {[%clk 0:10:02.2]}
2... Nf6 {[%clk 0:09:56.8]} 3. g3 {[%clk 0:10:03.5]} 3... g6 {[%clk 0:09:57.3]}
4. Bg2 {[%clk 0:10:04.7]} 4... Bg7 {[%clk 0:09:58.2]} 5. e3 {[%clk 0:10:06.3]}
5... O-O {[%clk 0:09:58.6]} 6. Nge2 {[%clk 0:10:07.8]} 6... Nbd7 {[%clk
0:09:59.3]} 7. O-O {[%clk 0:10:08.7]} 7... e5 {[%clk 0:09:59.8]} 8. d3 {[%clk
0:10:05.4]} 8... Re8 {[%clk 0:09:58.1]} 9. Rb1 {[%clk 0:10:06.1]} 9... Nf8
{[%clk 0:09:58.2]} 10. b4 {[%clk 0:10:06.8]} 10... h5 {[%clk 0:09:59]} 11. h4
{[%clk 0:10:06.4]} 11... c6 {[%clk 0:09:33.1]} 12. b5 {[%clk 0:10:06.5]} 12...
c5 {[%clk 0:09:33.6]} 13. a4 {[%clk 0:10:04.5]} 13... Rb8 {[%clk 0:09:33.5]} 14.
Nd5 {[%clk 0:09:59.1]} 14... Nxd5 {[%clk 0:09:32.3]} 15. Bxd5 {[%clk 0:09:50.4]}
15... Nh7 {[%clk 0:09:20]} 16. e4 {[%clk 0:08:24.8]} 16... Bh3 {[%clk
0:08:30.2]} 17. Re1 {[%clk 0:08:07.6]} 17... Qf6 {[%clk 0:06:35.3]} 18. f4
{[%clk 0:07:47.2]} 18... Bg4 {[%clk 0:06:34.4]} 19. Rf1 {[%clk 0:07:45.6]} 19...
Qe7 {[%clk 0:06:33.3]} 20. fxe5 {[%clk 0:07:34.3]} 20... Qxe5 {[%clk 0:06:13.7]}
21. Bxf7+ {[%clk 0:05:56.1]} 21... Kh8 {[%clk 0:06:12.3]} 22. Bxe8 {[%clk
0:05:57.2]} 22... Rxe8 {[%clk 0:06:09.3]} 23. Bb2 {[%clk 0:05:55]} 23... Bxe2
{[%clk 0:06:08.4]} 24. Bxe5 {[%clk 0:05:54.6]} 24... Bxd1 {[%clk 0:06:06.2]} 25.
Bxg7+ {[%clk 0:05:55.6]} 25... Kxg7 {[%clk 0:06:06.9]} 26. Rbxd1 {[%clk
0:05:57.3]} 26... Nf6 {[%clk 0:06:06.4]} 27. Rf4 {[%clk 0:05:56]} 27... Ng4
{[%clk 0:06:06.2]} 28. d4 {[%clk 0:05:46.7]} 28... cxd4 {[%clk 0:06:05.7]} 29.
Rxd4 {[%clk 0:05:45.4]} 29... Re6 {[%clk 0:05:57.1]} 30. Kf1 {[%clk 0:05:05.5]}
30... Ne5 {[%clk 0:05:52.9]} 31. Ke2 {[%clk 0:05:02.2]} 31... Nd7 {[%clk
0:05:49.6]} 32. Ke3 {[%clk 0:04:39.2]} 32... Nc5 {[%clk 0:05:49]} 33. Rf2 {[%clk
0:04:23.6]} 33... Nb3 {[%clk 0:05:42.7]} 34. Rd5 {[%clk 0:04:23.5]} 34... Nc5
{[%clk 0:05:38.4]} 35. e5 {[%clk 0:04:07.3]} 35... Nxa4 {[%clk 0:05:26.1]} 36.
Rxd6 {[%clk 0:04:03.4]} 36... Rxe5+ {[%clk 0:05:26.4]} 37. Kd4 {[%clk
0:04:04.5]} 37... Re7 {[%clk 0:05:25.3]} 38. Rff6 {[%clk 0:04:03.2]} 38... b6
{[%clk 0:05:05.6]} 39. Rxg6+ {[%clk 0:04:03]} 39... Kf7 {[%clk 0:05:06.3]} 40.
Rh6 {[%clk 0:04:02.6]} 40... Kg7 {[%clk 0:05:03.6]} 41. Rdg6+ {[%clk 0:04:02.5]}
41... Kf7 {[%clk 0:05:03.2]} 42. Rh7+ {[%clk 0:04:03.2]} 1-0

[Event "GrandPrix_29.05"]
[Site "Chess.com"]
[Date "2020.05.29"]
[Round "7"]
[White "GM_LOADING"]
[Black "MAS_1704"]
[Result "1-0"]
[WhiteElo "2329"]
[BlackElo "2107"]
[TimeControl "600+2"]
[EndTime "12:24:04 PDT"]
[Termination "GM_LOADING won by resignation"]

1. e4 {[%clk 0:10:01.9]} 1... g6 {[%clk 0:09:59.3]} 2. d4 {[%clk 0:10:00.6]}
2... Bg7 {[%clk 0:09:59.6]} 3. Nc3 {[%clk 0:10:00.7]} 3... d6 {[%clk 0:09:59.5]}
4. Be3 {[%clk 0:10:01.4]} 4... Nf6 {[%clk 0:09:58.8]} 5. f3 {[%clk 0:09:55.6]}
5... c6 {[%clk 0:09:57.8]} 6. Qd2 {[%clk 0:09:55.9]} 6... b5 {[%clk 0:09:56.1]}
7. g4 {[%clk 0:09:54.7]} 7... h5 {[%clk 0:09:55.7]} 8. g5 {[%clk 0:09:55.5]}
8... Nfd7 {[%clk 0:09:56.3]} 9. O-O-O {[%clk 0:09:56.1]} 9... Nb6 {[%clk
0:09:56.1]} 10. Bd3 {[%clk 0:09:56.7]} 10... O-O {[%clk 0:09:47.5]} 11. f4
{[%clk 0:09:56]} 11... d5 {[%clk 0:09:26.4]} 12. f5 {[%clk 0:08:32]} 12... dxe4
{[%clk 0:09:22]} 13. Bxe4 {[%clk 0:08:30.8]} 13... Bxf5 {[%clk 0:09:01.1]} 14.
Bxf5 {[%clk 0:08:14.8]} 14... gxf5 {[%clk 0:09:01.3]} 15. Nh3 {[%clk 0:08:10.1]}
15... b4 {[%clk 0:08:38.7]} 16. Ne2 {[%clk 0:08:09]} 16... Qd5 {[%clk
0:08:38.9]} 17. Kb1 {[%clk 0:08:05.4]} 17... Qf3 {[%clk 0:08:38.8]} 18. Nef4
{[%clk 0:05:24.2]} 18... Nc4 {[%clk 0:08:33.5]} 19. Qd3 {[%clk 0:05:22.5]} 19...
Nxe3 {[%clk 0:08:24]} 20. Rhe1 {[%clk 0:03:55.9]} 20... Qxd1+ {[%clk 0:07:04.4]}
21. Rxd1 {[%clk 0:03:55.3]} 21... Nxd1 {[%clk 0:07:04.9]} 22. Qxd1 {[%clk
0:03:40.8]} 22... Rd8 {[%clk 0:07:04.7]} 23. g6 {[%clk 0:03:21.3]} 23... Nd7
{[%clk 0:07:04.7]} 24. gxf7+ {[%clk 0:03:09.6]} 24... Kxf7 {[%clk 0:07:04.8]}
25. Qxh5+ {[%clk 0:03:09.9]} 25... Kg8 {[%clk 0:07:03.6]} 26. Ng5 {[%clk
0:01:09.5]} 26... Nf8 {[%clk 0:07:01.8]} 27. Qf7+ {[%clk 0:01:07.2]} 27... Kh8
{[%clk 0:07:02]} 28. Ng6+ {[%clk 0:01:06.8]} 28... Nxg6 {[%clk 0:07:00.2]} 29.
Qxg6 {[%clk 0:01:08.7]} 29... Kg8 {[%clk 0:06:53.1]} 30. Ne6 {[%clk 0:01:08.6]}
1-0